bitfinex/quotes_ETHUSD_20251017
["timestamp","ask_amount","ask_price","bid_price","bid_amount"]
[1760695027408,20.43168081,3745.2,3745.1,0.001]
[1760695028029,18.49706081,3745.2,3745.1,0.001]
[1760695028528,5.03196957,3744.8,3743.5,0.1655]
[1760695028700,28.74366132,3744.8,3743.5,0.1655]
[1760695028908,29.16646132,3744.8,3743.5,0.1655]
[1760695029108,29.58548564,3744.8,3743.2,0.4646]
[1760695029437,47.69103215,3744.8,3743.3,0.1655]
[1760695029816,43.93822215,3744.8,3743.3,0.1655]
[1760695030036,43.64371553,3744.8,3743.3,0.1655]
[1760695030241,2.67136827,3743.4,3743.3,0.1655]
[1760695030414,2.67158237,3743.1,3742.5,0.4646]
[1760695030617,1.728,3743.1,3742.1,2.6722424]
[1760695030836,0.6336,3743.6,3743.0,0.4676]
[1760695031151,3.09071326,3743.1,3743.0,0.4676]
[1760695031322,2.67158237,3743.1,3743.0,0.4676]
[1760695031949,2.67158237,3743.1,3743.0,0.003]
[1760695032152,3.21054389,3743.1,3743.0,0.003]
[1760695032355,3.34299927,3743.1,3743.0,0.003]
[1760695032776,3.62968851,3743.1,3743.0,0.003]
[1760695033968,6.41008851,3743.1,3743.0,0.003]
[1760695034718,5.99128851,3743.1,3743.0,0.003]
[1760695035241,5.99128851,3743.1,3743.0,0.004]
[1760695035416,13.07465894,3743.1,3743.0,0.004]
[1760695035819,10.40307657,3743.1,3743.0,0.004]
[1760695036028,13.07385894,3743.1,3743.0,0.004]
[1760695036318,5.99048851,3743.1,3743.0,0.004]
[1760695036731,5.45232699,3743.1,3743.0,0.004]
[1760695036934,4.81872699,3743.1,3743.0,0.004]
[1760695037142,11.90209742,3743.1,3743.0,0.004]
[1760695037747,0.41914462,3743.1,3743.0,0.004]
[1760695037929,3.09072699,3743.1,3743.0,0.004]
[1760695038639,3.09072699,3743.1,3743.0,0.4686]
[1760695039146,3.09072699,3743.1,3743.0,0.004]
[1760695039723,0.41914462,3743.1,3743.0,0.4686]
[1760695041746,7.08337043,3744.0,3743.0,0.4686]
[1760695041948,2.67106747,3743.9,3743.1,3.15109744]
[1760695042252,0.41906973,3743.7,3743.2,0.4539]
[1760695043556,0.41906973,3743.7,3743.3,0.4539]
[1760695043856,0.41906973,3743.7,3743.4,0.4539]
[1760695044073,7.08337043,3743.6,3743.1,0.1655]
[1760695044252,2.67152168,3743.2,3743.0,0.004]
[1760695044453,9.754835,3743.3,3743.0,0.004]
[1760695044761,7.08337043,3743.3,3743.1,0.4539]
[1760695044951,7.50247632,3743.3,3743.0,0.004]
[1760695045542,10.17395957,3743.3,3743.0,0.004]
[1760695046141,0.41910589,3743.3,3743.1,0.4539]
[1760695046347,0.41910589,3743.3,3743.2,0.4539]
[1760695047363,0.41910589,3743.3,3743.2,0.78340503]
[1760695047533,0.41910589,3743.3,3743.2,0.4539]
[1760695048326,0.41910589,3743.3,3743.0,0.004]
[1760695048526,0.41910589,3743.3,3743.0,3.12954837]
[1760695048972,0.41910589,3743.3,3743.0,0.4579]
[1760695049870,0.41910589,3743.3,3743.0,0.004]
[1760695050056,2.67158237,3743.1,3743.0,0.004]
[1760695050255,3.09057429,3743.3,3743.0,0.004]
[1760695050457,0.41910589,3743.3,3743.0,0.004]
[1760695050765,0.41910589,3743.3,3743.1,0.6194]
[1760695051331,0.41910589,3743.3,3743.2,0.4539]
[1760695052373,0.41910589,3743.3,3743.1,0.1655]
[1760695052673,2.67155542,3743.2,3743.0,0.004]
[1760695052873,0.41910589,3743.3,3743.0,0.004]
[1760695053375,2.67153129,3743.2,3743.0,0.004]
[1760695053939,2.67158237,3743.1,3743.0,0.004]
[1760695054377,3.7012561,3743.1,3743.0,0.004]
[1760695059689,5.4292561,3743.1,3743.0,0.004]
[1760695059903,5.4284561,3743.1,3743.0,0.004]
[1760695060699,4.9796561,3743.1,3743.0,0.004]
[1760695061615,5.4284561,3743.1,3743.0,0.004]
[1760695062299,6.0620561,3743.1,3743.0,0.004]
[1760695062801,4.9796561,3743.1,3743.0,0.004]
[1760695063216,6.16920866,3743.1,3743.0,0.004]
[1760695066920,6.14940866,3743.1,3743.0,0.004]
[1760695067126,5.72040866,3743.1,3743.0,0.004]
[1760695067496,12.80378107,3743.1,3743.0,0.004]
[1760695068330,12.17018107,3743.1,3743.0,0.004]
[1760695068829,11.48495478,3743.1,3743.0,0.004]
[1760695069892,4.40158237,3743.1,3743.0,0.004]
[1760695070090,11.48495478,3743.1,3743.0,0.004]
[1760695070894,1.73,3743.1,3743.0,0.004]
[1760695071099,11.48495478,3743.1,3743.0,0.004]
[1760695072026,4.40158237,3743.1,3743.0,0.004]
[1760695072225,0.002,3743.1,3743.0,0.4741]
[1760695072523,2.67358237,3743.1,3743.0,0.004]
[1760695073415,4.13770529,3743.1,3743.0,0.004]
[1760695073584,2.67358237,3743.1,3743.0,0.004]
[1760695074591,3.11178237,3743.1,3743.0,0.004]
[1760695076091,2.67358237,3743.1,3743.0,0.004]
[1760695078690,0.002,3743.1,3743.0,0.4741]
[1760695078890,0.002,3743.1,3743.0,0.004]
[1760695079110,2.67358237,3743.1,3743.0,0.004]
[1760695081425,0.002,3743.1,3743.0,0.4741]
[1760695081656,3.11178237,3743.1,3743.0,0.004]
[1760695081825,6.05636813,3743.1,3743.0,0.004]
[1760695082261,6.68996813,3743.1,3743.0,0.004]
[1760695082724,6.25176813,3743.1,3743.0,0.004]
[1760695082925,5.61816813,3743.1,3743.0,0.004]
[1760695083126,6.52646813,3743.1,3743.0,0.004]
[1760695083561,5.45386813,3743.1,3743.0,0.004]
[1760695083930,4.98376813,3743.1,3743.0,0.004]
[1760695085924,5.40292591,3743.1,3743.0,0.004]
[1760695087378,5.40292591,3743.1,3742.6,0.001]
[1760695087581,13.72663324,3741.6,3739.2,0.1675]
[1760695087727,14.54240138,3741.6,3740.4,0.1655]
[1760695087930,14.54240138,3741.6,3739.2,0.1675]
[1760695087931,5.03482497,3740.8,3739.2,0.1675]
[1760695088230,5.314526,3740.3,3738.7,0.4308]
[1760695088429,0.3456536,3740.3,3738.7,0.4308]
[1760695088661,0.6336,3740.6,3738.7,0.4308]
[1760695088869,2.67384594,3740.0,3738.7,0.4308]
[1760695089084,0.4308,3740.2,3738.7,0.4308]
[1760695089237,2.6737253,3740.1,3738.8,0.92886798]
[1760695089572,0.46608034,3740.1,3740.0,0.1675]
[1760695089770,0.419464,3740.1,3740.0,0.5983]
[1760695090153,0.04660962,3740.5,3740.0,0.5983]
[1760695090356,2.67307135,3741.1,3740.1,0.4308]
[1760695090557,0.04660651,3741.0,3740.2,0.32720965]
[1760695090749,0.04660651,3741.0,3740.3,0.4308]
[1760695091839,8.73898634,3741.0,3740.2,0.4308]
[1760695092257,2.67320791,3740.9,3740.2,0.4308]
[1760695092473,8.73898634,3741.0,3740.2,0.4308]
[1760695092673,2.67341996,3740.6,3740.0,0.1675]
[1760695092873,8.69237983,3740.4,3739.0,0.1655]
[1760695093083,8.69237983,3740.4,3739.6,0.4308]
[1760695093084,2.6735883,3740.3,3739.6,0.4308]
[1760695093378,2.67365381,3740.2,3739.0,0.1655]
[1760695093576,2.67378745,3740.1,3739.0,3.27080965]
[1760695093790,2.67378401,3740.1,3739.1,0.4308]
[1760695093997,0.4671,3740.1,3739.0,0.1655]
[1760695094276,2.67401128,3739.7,3738.5,0.1655]
[1760695094476,2.67437539,3739.2,3738.5,0.1655]
[1760695094637,2.67415429,3739.5,3738.5,0.1655]
[1760695094843,2.67415429,3739.5,3737.5,1.728]
[1760695094844,21.29286778,3738.6,3736.1,0.80457966]
[1760695095065,0.2139,3738.6,3737.3,0.1635]
[1760695095263,0.4671,3738.9,3737.3,0.19025728]
[1760695095264,0.2139,3738.9,3737.3,0.19025728]
[1760695095481,0.4671,3739.5,3738.0,2.67516359]
[1760695095652,0.41961759,3738.9,3738.1,0.89056791]
[1760695095856,0.41961759,3738.9,3738.2,0.4308]
[1760695096164,0.41961759,3738.9,3738.4,2.67492535]
[1760695096472,0.41961759,3738.9,3738.5,0.4308]
[1760695096684,0.41961759,3738.9,3738.6,0.4308]
[1760695096855,0.41961759,3738.9,3738.7,0.4308]
[1760695097179,0.04662384,3739.5,3738.7,0.4308]
[1760695097380,0.41955444,3739.4,3738.7,0.4308]
[1760695097880,0.41955444,3739.4,3738.5,2.67486889]
[1760695098065,0.41955444,3739.4,3739.3,0.1655]
[1760695101449,0.04662384,3739.5,3739.3,3.29439732]
[1760695101645,0.6825,3740.6,3739.5,2.67409659]
[1760695101884,0.41948611,3740.0,3739.6,2.67403194]
[1760695102058,0.04661644,3740.3,3739.6,0.4546]
[1760695103766,0.04661644,3740.3,3739.6,3.12866869]
[1760695104085,0.04661644,3740.3,3739.6,1.05154547]
[1760695104282,0.04661644,3740.3,3739.3,0.1665]
[1760695104491,1.728,3740.2,3739.3,2.84078142]
[1760695104705,2.6737253,3740.1,3739.3,0.1665]
[1760695104871,2.67394505,3739.8,3739.3,0.001]
[1760695105196,2.67388278,3739.9,3739.3,0.001]
[1760695105555,0.04661862,3739.8,3739.3,0.001]
[1760695105866,0.04661862,3739.8,3739.4,0.4546]
[1760695106066,2.67351822,3740.4,3739.5,0.4546]
[1760695106286,0.41948229,3739.9,3739.5,0.4546]
[1760695106455,0.0466173,3740.2,3739.6,0.4546]
[1760695106651,2.67344452,3740.5,3739.6,0.4546]
[1760695106985,0.4660738,3740.3,3739.6,0.78093348]
[1760695107171,0.4660738,3740.3,3739.3,0.001]
[1760695107172,2.67365381,3740.2,3739.3,0.001]
[1760695107376,2.67377334,3740.1,3739.3,0.001]
[1760695107971,2.67381704,3740.0,3739.3,0.001]
[1760695108173,2.67387601,3739.9,3739.3,0.001]
[1760695108354,2.88837601,3739.9,3739.3,0.001]
[1760695108560,0.41949452,3739.8,3739.3,0.001]
[1760695109865,0.38224154,3739.8,3739.3,0.001]
[1760695110068,0.04661845,3739.9,3739.3,0.001]
[1760695110386,0.04661845,3739.9,3739.6,2.67407923]
[1760695110588,0.04661845,3739.9,3739.7,0.4546]
[1760695110788,0.04661845,3739.9,3739.3,0.4556]
[1760695111094,0.04661845,3739.9,3739.4,2.67420308]
[1760695111292,0.04661845,3739.9,3739.3,0.001]
[1760695111589,0.26111845,3739.9,3739.3,0.001]
[1760695111890,0.26111845,3739.9,3739.3,2.67529343]
[1760695112102,0.26111845,3739.9,3739.3,0.001]
[1760695112479,2.67395413,3739.8,3739.3,0.001]
[1760695112821,2.6740342,3739.7,3739.3,0.001]
[1760695112972,0.468,3739.7,3739.3,0.001]
[1760695113165,3.1420226,3739.7,3739.3,0.001]
[1760695113367,0.468,3739.7,3739.3,0.001]
[1760695115296,0.468,3739.6,3739.3,0.001]
[1760695115703,3.14208526,3739.6,3739.3,0.001]
[1760695116068,0.468,3739.6,3739.3,0.001]
[1760695116286,0.8875279,3739.6,3739.3,0.001]
[1760695118815,0.4195279,3739.6,3739.3,0.001]
[1760695119226,0.8017939,3739.6,3739.3,0.001]
[1760695119426,0.468,3739.5,3739.3,0.001]
[1760695120131,0.04662176,3739.5,3739.3,0.001]
[1760695124299,0.04662176,3739.5,3739.3,0.4556]
[1760695124499,0.04662176,3739.5,3739.3,0.001]
[1760695125230,0.002,3740.2,3739.4,0.4546]
[1760695125424,2.67566709,3740.2,3739.4,0.4546]
[1760695125624,1.0,3739.5,3739.4,3.12882581]
[1760695125806,1.0,3739.5,3739.4,0.4546]
[1760695126643,1.0,3739.5,3739.3,0.001]
[1760695128113,0.468,3739.4,3739.3,0.001]
[1760695128454,5.92270066,3739.4,3739.3,0.001]
[1760695129247,3.3081119,3739.0,3738.9,0.001]
[1760695129843,5.5041119,3739.0,3738.9,0.001]
[1760695130020,26.62971491,3739.0,3738.9,0.001]
[1760695130223,37.74767091,3739.0,3738.9,0.001]
[1760695130538,40.70317087,3739.0,3738.9,0.001]
[1760695131038,40.70237087,3739.0,3738.9,0.001]
[1760695131344,40.70237087,3739.0,3737.2,0.99261313]
[1760695131345,0.6336,3737.9,3737.2,0.99261313]
[1760695131518,2.89562846,3737.3,3737.2,0.99261313]
[1760695131723,12.75978246,3737.3,3737.2,0.57299613]
[1760695131942,8.52991667,3737.3,3737.2,0.53869613]
[1760695132243,3.75719021,3737.3,3737.2,0.53869613]
[1760695132417,9.24291867,3737.3,3737.2,0.53869613]
[1760695132626,6.43291867,3737.3,3737.2,0.53869613]
[1760695132816,2.02919021,3737.3,3737.2,0.53869613]
[1760695133012,1.472068,3737.3,3737.2,0.53869613]
[1760695133748,0.04665206,3737.3,3737.2,0.53869613]
[1760695134410,0.47825206,3737.3,3737.2,0.53869613]
[1760695134606,26.5945483,3737.3,3737.2,0.53869613]
[1760695135049,24.33865052,3737.3,3737.2,0.53869613]
[1760695135213,4.11413542,3737.3,3737.2,0.53869613]
[1760695135414,5.9354112,3737.3,3737.2,0.53869613]
[1760695135648,3.25968274,3737.3,3737.2,0.53869613]
[1760695136309,0.2199,3738.0,3737.2,0.53869613]
[1760695136310,0.13750934,3738.1,3737.2,0.53869613]
[1760695136508,0.4294,3741.1,3737.9,2.67522973]
[1760695136714,0.26654668,3739.8,3738.0,2.29795858]
[1760695136921,0.26654668,3739.8,3738.3,2.67494711]
[1760695136922,0.4273,3739.7,3738.3,2.67494711]
[1760695137152,0.4273,3739.7,3738.2,0.467]
[1760695137370,1.728,3739.6,3738.2,0.467]
[1760695137659,0.4273,3739.4,3738.0,0.1675]
[1760695138148,0.04663225,3739.2,3738.1,0.467]
[1760695138325,0.04663225,3739.2,3738.1,3.47311523]
[1760695138963,0.04663225,3739.2,3738.1,0.79796695]
[1760695139119,0.04663225,3739.2,3738.3,2.6750127]
[1760695139319,0.04663225,3739.2,3738.4,2.67493063]
[1760695139553,0.04663225,3739.2,3738.3,2.6749948]
[1760695139850,0.002,3739.0,3738.4,2.67492987]
[1760695140256,0.002,3739.0,3738.2,3.14208231]
[1760695140257,0.002,3739.0,3738.5,3.14186594]
[1760695140557,0.002,3739.0,3738.5,0.467]
[1760695140721,0.002,3739.0,3738.1,0.467]
[1760695141061,0.002,3739.0,3738.2,2.67508426]
[1760695141475,0.04662957,3738.8,3737.2,0.97539613]
[1760695141678,0.6336,3738.6,3737.2,0.53869613]
[1760695141837,2.3616,3738.3,3737.2,0.53869613]
[1760695142170,0.6336,3738.1,3737.2,0.53869613]
[1760695142380,0.6336,3738.2,3737.2,0.53869613]
[1760695142538,0.6336,3738.0,3737.2,0.53869613]
[1760695142736,0.04664881,3737.9,3737.2,0.53869613]
[1760695142940,0.6336,3737.8,3737.2,0.53869613]
[1760695143139,2.3616,3737.6,3737.2,0.53869613]
[1760695143386,0.6336,3737.4,3737.2,0.53869613]
[1760695143856,0.4193,3737.3,3737.2,0.53869613]
[1760695144451,0.6336,3737.7,3737.2,0.53869613]
[1760695144665,0.41982301,3737.3,3737.2,0.53869613]
[1760695144977,1.0529,3738.4,3737.2,0.97539613]
[1760695145286,0.41976079,3737.4,3737.2,0.97539613]
[1760695145488,0.4193,3738.4,3737.3,0.81828184]
[1760695145639,0.41975731,3737.6,3737.3,0.81828184]
[1760695145842,0.41975731,3737.6,3737.4,0.4367]
[1760695146178,0.41974262,3737.6,3737.3,0.4367]
[1760695146375,0.41974262,3737.6,3737.2,0.53869613]
[1760695146672,0.228,3738.9,3737.4,22.31555532]
[1760695146884,0.41971836,3738.2,3737.6,2.6755091]
[1760695147090,0.04664002,3738.6,3738.1,0.1675]
[1760695147577,0.04664002,3738.6,3737.6,0.4367]
[1760695148141,0.04664002,3738.6,3737.7,2.67539072]
[1760695148344,0.04664002,3738.6,3738.5,0.1675]
[1760695148752,0.04664002,3738.6,3738.5,0.6042]
[1760695149143,0.41967916,3738.8,3738.5,0.93211551]
[1760695149349,0.41967916,3738.8,3738.5,0.1675]
[1760695149781,0.04663105,3739.1,3738.6,0.4367]
[1760695149997,0.002,3739.4,3738.9,2.67458343]
[1760695150503,0.002,3739.4,3738.9,3.11128343]
[1760695150977,0.002,3739.4,3738.9,0.4367]
[1760695151177,0.002,3739.4,3736.4,2.67630524]
[1760695151178,0.002,3739.4,3738.3,0.4367]
[1760695151350,0.42155318,3739.0,3738.6,0.4367]
[1760695151546,0.42155318,3739.0,3738.7,0.74785508]
[1760695151779,0.42155318,3739.0,3738.8,0.4367]
[1760695153144,0.42155318,3739.0,3738.9,0.4367]
[1760695153391,0.46818042,3739.0,3738.9,0.4367]
[1760695153592,0.04862724,3739.0,3738.9,3.11128343]
[1760695153771,0.002,3739.0,3738.9,3.11128343]
[1760695153945,0.002,3739.0,3738.9,3.82348374]
[1760695154987,0.002,3739.0,3738.3,0.4367]
[1760695154988,0.0012,3739.0,3738.3,0.4367]
[1760695155185,0.1949,3738.9,3738.2,0.1675]
[1760695155361,0.1949,3738.9,3737.9,0.5703]
[1760695155559,0.1949,3738.9,3737.9,0.4367]
[1760695156088,0.1949,3738.9,3737.5,2.80916194]
[1760695156089,0.1949,3738.9,3737.5,0.4367]
[1760695156259,0.1949,3738.9,3737.6,0.32460156]
[1760695156447,0.1949,3738.9,3737.5,0.4367]
[1760695156448,3.11637208,3738.8,3737.5,0.4367]
[1760695156664,0.4663026,3738.6,3737.5,0.4367]
[1760695157471,0.4663026,3738.6,3737.6,0.1336]
[1760695157701,0.4663026,3738.6,3737.9,2.67526533]
[1760695157906,0.4663026,3738.6,3738.5,0.1675]
[1760695158670,0.4683026,3738.6,3738.5,0.1675]
[1760695159103,0.4683026,3738.6,3737.6,0.4367]
[1760695159266,0.4683026,3738.6,3737.7,2.98666654]
[1760695159466,0.4683026,3738.6,3737.8,0.4367]
[1760695159665,0.4683026,3738.6,3737.7,2.98662674]
[1760695160004,0.4683026,3738.6,3737.8,0.4367]
[1760695160178,0.4683026,3738.6,3737.6,0.4367]
[1760695160377,0.4683026,3738.6,3737.6,0.74803451]
[1760695160608,0.4683026,3738.6,3737.6,3.42349379]
[1760695160827,0.4683026,3738.6,3738.5,0.1675]
[1760695161304,0.4683026,3738.6,3738.2,0.1675]
[1760695161707,0.4683026,3738.6,3737.3,0.001]
[1760695161912,0.4683026,3738.6,3737.4,0.24321961]
[1760695161913,0.4393,3738.5,3737.4,0.24321961]
[1760695162082,0.4683026,3738.6,3737.4,0.24321961]
[1760695162083,0.4683026,3738.6,3737.4,0.68701961]
[1760695162484,0.4683026,3738.6,3737.4,0.4438]
[1760695162877,0.4683026,3738.6,3738.5,0.1675]
[1760695163074,0.4683026,3738.6,3738.2,0.1675]
[1760695163278,0.4683026,3738.6,3738.2,0.6113]
[1760695163473,0.4683026,3738.6,3738.2,0.1675]
[1760695163977,0.4683026,3738.6,3737.5,0.4438]
[1760695164212,0.4683026,3738.6,3738.5,0.1675]
[1760695164213,0.04863732,3738.6,3738.5,0.1675]
[1760695164777,0.002,3738.6,3738.5,0.1675]
[1760695165185,0.002,3738.6,3738.5,3.2861696]
[1760695165406,0.002,3738.6,3738.5,3.88228681]
[1760695166111,0.002,3738.6,3738.5,0.76361721]
[1760695166313,0.002,3738.6,3737.3,0.02775728]
[1760695166525,0.002,3738.6,3737.6,0.4438]
[1760695166726,0.002,3738.6,3738.5,0.1675]
[1760695167026,0.002,3738.6,3738.5,2.8423696]
[1760695167534,0.002,3738.6,3738.4,0.1675]
[1760695167686,0.002,3738.6,3738.4,2.84242609]
[1760695168028,0.002,3738.6,3738.4,0.49612261]
[1760695168208,0.002,3738.6,3738.4,0.1675]
[1760695169624,0.002,3738.6,3738.5,0.4438]
[1760695169830,0.002,3738.6,3738.4,0.1675]
[1760695169985,0.002,3738.6,3738.5,0.4438]
[1760695170526,0.002,3738.6,3738.4,0.1675]
[1760695171132,0.002,3738.6,3738.5,0.4438]
[1760695171890,0.002,3738.6,3738.5,0.77243821]
[1760695172385,0.002,3738.6,3738.5,3.44730781]
[1760695172588,0.002,3738.6,3738.5,0.77243821]
[1760695172789,0.002,3738.6,3738.5,0.4438]
[1760695173989,0.002,3738.6,3738.5,3.1186696]
[1760695174416,0.002,3738.6,3738.5,0.4438]
[1760695174595,0.002,3738.6,3738.4,2.97603531]
[1760695174794,0.002,3738.6,3738.5,3.1186696]
[1760695174995,0.002,3738.6,3738.5,3.72814625]
[1760695175196,0.002,3738.6,3738.5,1.05327665]
[1760695175696,0.002,3738.6,3738.5,3.72814625]
[1760695177599,0.002,3738.6,3738.5,0.60947665]
[1760695177793,0.002,3738.6,3738.4,0.1336]
[1760695178233,0.002,3738.6,3738.4,2.80853298]
[1760695178399,0.002,3738.6,3738.4,0.1336]
[1760695178599,0.0012,3738.6,3738.4,0.1336]
[1760695179032,0.4389,3738.5,3737.6,0.4448]
[1760695179228,0.4389,3738.5,3737.6,0.1346]
[1760695179430,0.4389,3738.5,3737.6,0.001]
[1760695180031,0.35344294,3738.4,3737.6,0.001]
[1760695180207,0.4389,3738.5,3737.6,0.001]
[1760695180406,0.04663773,3738.4,3737.6,0.001]
[1760695180607,0.48553773,3738.4,3737.6,0.001]
[1760695183138,0.4389,3738.4,3737.6,0.001]
[1760695184239,2.67523564,3738.0,3737.6,0.001]
[1760695184407,0.26752356,3737.9,3737.6,0.001]
[1760695184733,0.70642356,3737.9,3737.6,0.001]
[1760695184898,1.12617952,3737.9,3737.6,0.001]
[1760695185298,0.41975596,3737.9,3737.6,0.001]
[1760695185502,0.4389,3737.8,3737.6,0.001]
[1760695186517,2.1669,3737.8,3737.6,0.001]
[1760695186722,3.11430884,3737.8,3737.6,0.001]
[1760695186925,0.4389,3737.8,3737.6,0.001]
[1760695187115,0.53086324,3737.7,3737.6,0.001]
[1760695187429,3.20630535,3737.7,3737.6,0.001]
[1760695187632,3.64520535,3737.7,3737.6,0.001]
[1760695187839,6.00680535,3737.7,3737.6,0.001]
[1760695188151,19.50355079,3737.7,3737.6,0.001]
[1760695188752,3.30925687,3737.4,3737.3,0.001]
[1760695188915,12.94064612,3737.4,3737.3,0.001]
[1760695189114,14.41320812,3737.4,3737.3,0.001]
[1760695189334,14.83309098,3737.4,3737.3,0.001]
[1760695189547,4.34813011,3737.4,3737.3,0.001]
[1760695189748,2.58678286,3737.4,3737.3,0.001]
[1760695189951,3.22038286,3737.4,3737.3,0.001]
[1760695190125,5.89603973,3737.4,3737.3,0.001]
[1760695191151,35.87204005,3737.4,3737.3,0.001]
[1760695191851,13.06167873,3737.4,3737.3,0.001]
[1760695192249,14.03937973,3737.4,3737.3,0.001]
[1760695192452,13.76344873,3737.4,3737.3,0.001]
[1760695192653,12.46574873,3737.4,3737.3,0.001]
[1760695192855,12.16344873,3737.4,3737.3,0.001]
[1760695193053,12.16344873,3737.4,3731.7,2.6796753]
[1760695193054,16.479622,3735.5,3731.7,2.6796753]
[1760695193223,2.67683481,3735.8,3733.3,0.1998]
[1760695193224,1.728,3735.0,3733.3,0.1998]
[1760695193423,1.728,3735.0,3731.4,0.6]
[1760695193424,0.1979,3733.4,3731.5,0.6089]
[1760695193650,0.6336,3733.3,3732.3,0.1655]
[1760695193859,0.1979,3733.4,3732.3,0.1655]
[1760695194026,0.4305,3734.4,3732.3,0.6099]
[1760695194239,0.2216,3734.2,3733.3,0.1998]
[1760695194660,2.378,3734.2,3732.5,1.728]
[1760695194832,2.378,3734.2,3732.3,0.1655]
[1760695194833,0.6336,3734.0,3732.3,0.1655]
[1760695195029,1.728,3733.8,3732.3,0.1655]
[1760695195229,11.362882,3733.5,3733.3,0.001]
[1760695195562,0.6336,3732.4,3731.4,0.6]
[1760695195766,0.4261,3732.7,3731.4,0.6]
[1760695196068,0.4261,3733.2,3731.4,0.6]
[1760695196254,0.6336,3733.0,3731.4,0.6]
[1760695196455,1.05393393,3732.8,3732.5,0.001]
[1760695196633,0.42033393,3732.8,3732.5,0.001]
[1760695197162,0.4261,3732.7,3732.5,0.001]
[1760695197664,0.4261,3732.6,3732.5,0.001]
[1760695197864,0.6882141,3732.6,3732.5,0.001]
[1760695198074,1.0597,3732.6,3732.5,0.001]
[1760695200347,0.6336,3732.6,3732.5,0.001]
[1760695200532,1.0597,3732.6,3732.5,0.001]
[1760695200738,0.6336,3731.9,3731.4,0.6]
[1760695200939,0.50410666,3731.8,3731.4,0.6]
[1760695201134,0.2181,3733.0,3731.5,0.4444]
[1760695201135,2.3767,3733.0,3731.5,0.4444]
[1760695201372,0.42040718,3731.9,3731.5,0.4444]
[1760695201555,0.42040718,3731.9,3731.7,2.67973437]
[1760695201869,0.42033223,3732.6,3732.1,2.6794566]
[1760695202075,0.42033223,3732.6,3732.5,0.1655]
[1760695202233,0.2203,3735.1,3732.5,0.5935]
[1760695202234,0.4008,3734.3,3732.5,0.5935]
[1760695202437,0.42026899,3733.2,3733.1,2.67873884]
[1760695202637,0.0466976,3733.8,3733.1,0.6286]
[1760695202866,0.2203,3735.1,3733.2,0.428]
[1760695203068,0.42017234,3734.4,3733.2,3.10660775]
[1760695203233,0.04669203,3734.1,3733.8,2.67823613]
[1760695203437,0.42017234,3734.4,3734.0,2.84752809]
[1760695203732,0.42017234,3734.4,3734.0,0.1695]
[1760695203940,0.42017234,3734.4,3733.4,0.428]
[1760695204137,0.87407234,3734.4,3733.1,0.2006]
[1760695204332,1.728,3734.3,3732.2,0.428]
[1760695204567,1.728,3733.5,3732.0,0.1695]
[1760695204771,0.6808,3733.4,3732.1,0.428]
[1760695205072,0.6808,3733.4,3731.5,3.10783319]
[1760695205073,0.42029542,3733.2,3731.5,3.10783319]
[1760695205275,2.67908097,3732.7,3731.2,0.1645]
[1760695205447,0.6336,3732.5,3730.9,0.1655]
[1760695205649,0.75814,3732.4,3731.1,0.1645]
[1760695205850,21.16425434,3733.0,3731.1,0.1645]
[1760695205851,0.4539,3732.9,3731.1,2.84466396]
[1760695206051,0.4539,3732.9,3729.7,2.68115288]
[1760695206052,0.2269,3731.5,3730.6,0.1655]
[1760695206362,0.64729171,3732.6,3731.4,1.028]
[1760695206566,0.64729171,3732.6,3731.4,3.70795441]
[1760695206757,0.64729171,3732.6,3731.5,0.38724544]
[1760695207147,0.42039171,3732.6,3731.7,2.67972648]
[1760695207349,0.42039171,3732.6,3731.8,0.428]
[1760695207568,0.42039171,3732.6,3731.6,3.10777071]
[1760695207888,0.42039171,3732.6,3731.4,3.27994871]
[1760695207889,0.42039171,3732.6,3732.5,0.1695]
[1760695208039,0.42039171,3732.6,3732.1,0.1695]
[1760695208474,0.42039171,3732.6,3732.2,0.43444573]
[1760695208678,0.42039171,3732.6,3732.3,0.44546521]
[1760695208851,0.42039171,3732.6,3732.4,0.428]
[1760695209196,0.42039171,3732.6,3732.5,0.428]
[1760695209339,0.42039171,3732.6,3732.5,3.10716945]
[1760695209545,0.4539,3734.5,3732.5,0.5616]
[1760695209764,0.2269,3735.0,3734.0,0.2006]
[1760695209940,0.1634,3734.9,3734.0,0.2006]
[1760695210141,0.4668058,3734.7,3734.1,0.428]
[1760695210983,0.002,3738.2,3734.2,0.0150534]
[1760695211151,0.42003252,3735.4,3734.0,0.22361049]
[1760695211486,0.4568,3736.9,3735.2,2.67722886]
[1760695211487,2.266237,3736.8,3735.2,2.67722886]
[1760695211668,0.41997375,3735.8,3735.1,2.67723689]
[1760695211842,0.04667357,3736.1,3734.2,2.3616]
[1760695212044,0.4568,3736.9,3734.5,0.6336]
[1760695212045,0.41993412,3736.0,3734.5,0.6336]
[1760695212239,0.41993412,3736.0,3735.4,2.67707257]
[1760695212544,0.41993412,3736.0,3735.4,2.67707659]
[1760695212841,0.41993412,3736.0,3735.4,3.10508269]
[1760695213067,0.41993412,3736.0,3735.4,0.428]
[1760695213440,0.41993412,3736.0,3735.4,0.73851833]
[1760695213642,0.41993412,3736.0,3734.9,0.428]
[1760695214084,0.6837,3735.9,3734.2,0.428]
[1760695214253,6.240192,3735.7,3733.8,0.428]
[1760695214570,0.4568,3735.6,3732.9,25.42913339]
[1760695214769,0.42002407,3735.3,3734.1,0.428]
[1760695214976,0.42002407,3735.3,3734.5,2.67773316]
[1760695215149,0.42002407,3735.3,3734.6,0.45476882]
[1760695215350,0.4568,3736.8,3734.6,0.428]
[1760695215552,0.41997449,3736.1,3734.7,0.65457773]
[1760695215751,0.41997449,3736.1,3734.9,0.6336]
[1760695216076,0.41997449,3736.1,3735.0,0.59961777]
[1760695216245,0.41997449,3736.1,3735.1,0.6336]
[1760695216451,0.002,3737.8,3736.1,2.67654802]